[Event "Titled Tuesday Blitz July 18 Early 2023"]
[White "Guevara Sanchez, Erick Marvin"]
[Black "Turzo, Attila"]
[WhiteFideId "6700136"]
[BlackFideId "704954"]
[WhiteElo "2126"]
[BlackElo "2505"]
[Result "0-1"]
[Round "5"]
[TimeControl "180+2"]
[Date "2023.07.18"]
[WhiteClock "0:00:35"]
[BlackClock "0:00:42"]
[Board "195"]

1. e4 {[%clk 0:02:43]}  d6 {[%clk 0:02:59]} 2. d4 {[%clk 0:02:43]}  Nf6 {[%clk 0:03:00]} 3. Nc3 {[%clk 0:02:43]}  g6 {[%clk 0:03:00]} 4. f4 {[%clk 0:02:42]}  Bg7 {[%clk 0:03:00]} 5. Nf3 {[%clk 0:02:43]}  O-O {[%clk 0:03:01]} 6. Bd3 {[%clk 0:02:38]}  Nc6 {[%clk 0:03:01]} 7. Be3 {[%clk 0:02:38]}  e5 {[%clk 0:03:00]} 8. fxe5 {[%clk 0:02:38]}  dxe5 {[%clk 0:03:01]} 9. d5 {[%clk 0:02:38]}  Ne7 {[%clk 0:02:54]} 10. h3 {[%clk 0:02:38]}  c6 {[%clk 0:02:52]} 11. dxc6 {[%clk 0:02:36]}  Nxc6 {[%clk 0:02:52]} 12. O-O {[%clk 0:02:36]}  Be6 {[%clk 0:02:45]} 13. Bb5 {[%clk 0:02:33]}  Nh5 {[%clk 0:02:30]} 14. Ng5 {[%clk 0:02:16]}  Nd4 {[%clk 0:02:25]} 15. Bxd4 {[%clk 0:02:14]}  exd4 {[%clk 0:02:22]} 16. Nxe6 {[%clk 0:02:14]}  fxe6 {[%clk 0:02:18]} 17. Ne2 {[%clk 0:02:14]}  Qb6 {[%clk 0:02:14]} 18. Bd3 {[%clk 0:02:12]}  Qxb2 {[%clk 0:02:08]} 19. Rb1 {[%clk 0:02:12]}  Qxa2 {[%clk 0:02:08]} 20. Rxb7 {[%clk 0:02:11]}  Kh8 {[%clk 0:02:02]} 21. g4 {[%clk 0:02:02]}  Nf6 {[%clk 0:01:57]} 22. Nf4 {[%clk 0:02:01]}  e5 {[%clk 0:01:51]} 23. Ne2 {[%clk 0:01:47]}  Qe6 {[%clk 0:01:51]} 24. Ng3 {[%clk 0:01:41]}  a5 {[%clk 0:01:50]} 25. Kh2 {[%clk 0:01:35]}  a4 {[%clk 0:01:49]} 26. g5 {[%clk 0:01:34]}  Nd7 {[%clk 0:01:44]} 27. Rxf8+ {[%clk 0:01:33]}  Nxf8 {[%clk 0:01:42]} 28. Qe2 {[%clk 0:01:27]}  a3 {[%clk 0:01:34]} 29. Bc4 {[%clk 0:01:26]}  Qc8 {[%clk 0:01:33]} 30. Rb1 {[%clk 0:01:15]}  Ne6 {[%clk 0:01:31]} 31. Bxe6 {[%clk 0:01:06]}  Qxe6 {[%clk 0:01:30]} 32. Ra1 {[%clk 0:01:05]}  a2 {[%clk 0:01:28]} 33. h4 {[%clk 0:00:59]}  h6 {[%clk 0:01:14]} 34. gxh6 {[%clk 0:00:58]}  Bxh6 {[%clk 0:01:14]} 35. h5 {[%clk 0:00:58]}  Bf4 {[%clk 0:01:10]} 36. Kg2 {[%clk 0:00:47]}  Ra3 {[%clk 0:01:04]} 37. Nf1 {[%clk 0:00:44]}  Qf6 {[%clk 0:00:59]} 38. Qg4 {[%clk 0:00:42]}  gxh5 {[%clk 0:00:52]} 39. Qxh5+ {[%clk 0:00:40]}  Kg7 {[%clk 0:00:50]} 40. Qg4+ {[%clk 0:00:40]}  Qg6 {[%clk 0:00:48]} 41. Qxg6+ {[%clk 0:00:40]}  Kxg6 {[%clk 0:00:49]} 42. Kf2 {[%clk 0:00:38]}  Bc1 {[%clk 0:00:38]} 43. Rxc1 {[%clk 0:00:37]}  a1=Q {[%clk 0:00:39]} 44. Rxa1 {[%clk 0:00:37]}  Rxa1 {[%clk 0:00:40]} 45. Nd2 {[%clk 0:00:37]}  Ra2 {[%clk 0:00:38]} 46. Ke2 {[%clk 0:00:37]}  Rxc2 {[%clk 0:00:38]} 47. Kd3 {[%clk 0:00:37]}  Rxd2+ {[%clk 0:00:38]} 48. Kxd2 {[%clk 0:00:38]}  Kg5 {[%clk 0:00:39]} 49. Ke2 {[%clk 0:00:37]}  Kf4 {[%clk 0:00:40]} 50. Kd3 {[%clk 0:00:37]}  Kf3 {[%clk 0:00:40]} 51. Kc4 {[%clk 0:00:37]}  Kxe4 {[%clk 0:00:41]} 52. Kb3 {[%clk 0:00:37]}  Kd3 {[%clk 0:00:41]} 53. Kb2 {[%clk 0:00:35]}  Kd2 {[%clk 0:00:42]} 0-1


[Site "https://www.chess.com"]

[Event "Titled Tuesday Blitz July 18 Early 2023"]
[White "Lakshmi C"]
[Black "EdmundPlayer"]
[WhiteFideId "25035347"]
[WhiteElo "2111"]
[BlackElo "2297"]
[Result "0-1"]
[Round "5"]
[TimeControl "180+2"]
[Date "2023.07.18"]
[WhiteClock "0:00:00"]
[BlackClock "0:00:35"]
[Board "199"]

1. e4 {[%clk 0:00:14]}  e6 {[%clk 0:02:58]} 2. d4 {[%clk 0:00:14]}  d5 {[%clk 0:02:58]} 3. e5 {[%clk 0:00:14]}  c5 {[%clk 0:02:58]} 4. c3 {[%clk 0:00:14]}  Nc6 {[%clk 0:02:59]} 5. Ne2 {[%clk 0:00:13]}  cxd4 {[%clk 0:02:58]} 6. cxd4 {[%clk 0:00:13]}  Qb6 {[%clk 0:02:57]} 7. Nbc3 {[%clk 0:00:13]}  f6 {[%clk 0:02:57]} 8. exf6 {[%clk 0:00:13]}  Nxf6 {[%clk 0:02:58]} 9. g3 {[%clk 0:00:13]}  Bd6 {[%clk 0:02:51]} 10. Bg2 {[%clk 0:00:13]}  O-O {[%clk 0:02:50]} 11. O-O {[%clk 0:00:13]}  Bd7 {[%clk 0:02:50]} 12. Nf4 {[%clk 0:00:14]}  Qxd4 {[%clk 0:02:19]} 13. Qb3 {[%clk 0:00:11]}  Qb4 {[%clk 0:02:07]} 14. Qd1 {[%clk 0:00:06]}  a6 {[%clk 0:02:01]} 15. Be3 {[%clk 0:00:05]}  d4 {[%clk 0:01:47]} 16. a3 {[%clk 0:00:04]}  Qb6 {[%clk 0:01:35]} 17. Na4 {[%clk 0:00:03]}  Qc7 {[%clk 0:01:32]} 18. Bxd4 {[%clk 0:00:02]}  e5 {[%clk 0:01:25]} 19. Bb6 {[%clk 0:00:02]}  Qb8 {[%clk 0:01:25]} 20. Nd5 {[%clk 0:00:03]}  Nd4 {[%clk 0:00:35]} 21. Nxf6+ {[%clk 0:00:00]}  Rxf6 {[%clk 0:00:35]} 0-1


[Site "https://www.chess.com"]

[Event "Titled Tuesday Blitz July 18 Early 2023"]
[White "arturdailima"]
[Black "Winkels, Marcel"]
[BlackFideId "1003887"]
[WhiteElo "2256"]
[BlackElo "2095"]
[Result "1-0"]
[Round "5"]
[TimeControl "180+2"]
[Date "2023.07.18"]
[WhiteClock "0:01:58"]
[BlackClock "0:00:00"]
[Board "200"]

1. a3 {[%clk 0:03:00]}  c5 {[%clk 0:02:59]} 2. e3 {[%clk 0:02:56]}  Nf6 {[%clk 0:02:58]} 3. d4 {[%clk 0:02:56]}  g6 {[%clk 0:02:58]} 4. Nf3 {[%clk 0:02:56]}  Bg7 {[%clk 0:02:58]} 5. dxc5 {[%clk 0:02:53]}  Ne4 {[%clk 0:02:56]} 6. Nbd2 {[%clk 0:02:49]}  Nxc5 {[%clk 0:02:53]} 7. Be2 {[%clk 0:02:50]}  O-O {[%clk 0:02:52]} 8. O-O {[%clk 0:02:50]}  d6 {[%clk 0:02:52]} 9. c4 {[%clk 0:02:49]}  Nc6 {[%clk 0:02:49]} 10. Qc2 {[%clk 0:02:45]}  Bf5 {[%clk 0:02:48]} 11. e4 {[%clk 0:02:45]}  Bg4 {[%clk 0:02:41]} 12. Rb1 {[%clk 0:02:45]}  Rc8 {[%clk 0:02:39]} 13. b4 {[%clk 0:02:45]}  Ne6 {[%clk 0:02:36]} 14. Bb2 {[%clk 0:02:42]}  Qd7 {[%clk 0:02:09]} 15. Bxg7 {[%clk 0:02:41]}  Kxg7 {[%clk 0:02:07]} 16. h3 {[%clk 0:02:41]}  Bxf3 {[%clk 0:02:05]} 17. Nxf3 {[%clk 0:02:42]}  a6 {[%clk 0:01:57]} 18. Qb2+ {[%clk 0:02:39]}  Kg8 {[%clk 0:01:56]} 19. Rfd1 {[%clk 0:02:40]}  Qc7 {[%clk 0:01:51]} 20. Rbc1 {[%clk 0:02:36]}  Rfd8 {[%clk 0:01:47]} 21. Bf1 {[%clk 0:02:33]}  Ne5 {[%clk 0:01:38]} 22. Nd4 {[%clk 0:02:26]}  Nxd4 {[%clk 0:01:29]} 23. Qxd4 {[%clk 0:02:27]}  Qb8 {[%clk 0:01:13]} 24. f4 {[%clk 0:02:23]}  Nc6 {[%clk 0:01:11]} 25. Qe3 {[%clk 0:02:13]}  Qa7 {[%clk 0:01:11]} 26. Kf2 {[%clk 0:02:11]}  Qxe3+ {[%clk 0:01:10]} 27. Kxe3 {[%clk 0:02:12]}  Kf8 {[%clk 0:01:03]} 28. c5 {[%clk 0:02:04]}  dxc5 {[%clk 0:01:01]} 29. Rxd8+ {[%clk 0:02:05]}  Rxd8 {[%clk 0:01:00]} 30. Rxc5 {[%clk 0:02:06]}  Rd1 {[%clk 0:00:50]} 31. Bxa6 {[%clk 0:02:01]}  Nxb4 {[%clk 0:00:44]} 32. Be2 {[%clk 0:01:59]}  Nc6 {[%clk 0:00:00]} 33. Bxd1 {[%clk 0:01:58]} 1-0


[Site "https://www.chess.com"]

[Event "Titled Tuesday Blitz July 18 Early 2023"]
[White "Navyblue1"]
[Black "Novikova, Margarita"]
[BlackFideId "14109689"]
[WhiteElo "1868"]
[BlackElo "2190"]
[Result "0-1"]
[Round "5"]
[TimeControl "180+2"]
[Date "2023.07.18"]
[WhiteClock "0:00:00"]
[BlackClock "0:01:35"]
[Board "203"]

1. d4 {[%clk 0:03:00]}  e5 {[%clk 0:02:59]} 2. dxe5 {[%clk 0:02:57]}  Nc6 {[%clk 0:02:58]} 3. Nf3 {[%clk 0:02:51]}  Qe7 {[%clk 0:02:58]} 4. c4 {[%clk 0:02:42]}  Nxe5 {[%clk 0:02:57]} 5. Nxe5 {[%clk 0:02:40]}  Qxe5 {[%clk 0:02:57]} 6. Nc3 {[%clk 0:02:40]}  Nf6 {[%clk 0:02:55]} 7. e3 {[%clk 0:02:28]}  Bc5 {[%clk 0:02:49]} 8. Be2 {[%clk 0:02:23]}  O-O {[%clk 0:02:48]} 9. O-O {[%clk 0:02:10]}  a6 {[%clk 0:02:47]} 10. a3 {[%clk 0:01:56]}  d6 {[%clk 0:02:43]} 11. Qe1 {[%clk 0:01:01]}  Bg4 {[%clk 0:02:37]} 12. h3 {[%clk 0:00:53]}  Bxe2 {[%clk 0:02:35]} 13. Qxe2 {[%clk 0:00:54]}  Rfe8 {[%clk 0:02:31]} 14. Qc2 {[%clk 0:00:46]}  a5 {[%clk 0:02:24]} 15. Rd1 {[%clk 0:00:35]}  c6 {[%clk 0:02:19]} 16. Rb1 {[%clk 0:00:32]}  Rad8 {[%clk 0:02:11]} 17. b4 {[%clk 0:00:29]}  axb4 {[%clk 0:02:12]} 18. axb4 {[%clk 0:00:29]}  Ba7 {[%clk 0:02:11]} 19. Bb2 {[%clk 0:00:20]}  Qe7 {[%clk 0:02:06]} 20. Ra1 {[%clk 0:00:19]}  Bb8 {[%clk 0:02:05]} 21. Ne2 {[%clk 0:00:16]}  Qc7 {[%clk 0:02:05]} 22. Bxf6 {[%clk 0:00:10]}  gxf6 {[%clk 0:02:02]} 23. Qc3 {[%clk 0:00:10]}  d5 {[%clk 0:02:00]} 24. Nf4 {[%clk 0:00:07]}  Qe5 {[%clk 0:01:53]} 25. Rac1 {[%clk 0:00:05]}  Qxc3 {[%clk 0:01:50]} 26. Rxc3 {[%clk 0:00:05]}  Bxf4 {[%clk 0:01:51]} 27. exf4 {[%clk 0:00:05]}  dxc4 {[%clk 0:01:50]} 28. Rxd8 {[%clk 0:00:04]}  Rxd8 {[%clk 0:01:51]} 29. Rxc4 {[%clk 0:00:05]}  Rd2 {[%clk 0:01:44]} 30. g3 {[%clk 0:00:04]}  f5 {[%clk 0:01:44]} 31. Kg2 {[%clk 0:00:04]}  Kg7 {[%clk 0:01:43]} 32. Rc5 {[%clk 0:00:04]}  Kf6 {[%clk 0:01:43]} 33. b5 {[%clk 0:00:04]}  Rd5 {[%clk 0:01:40]} 34. Rxd5 {[%clk 0:00:01]}  cxd5 {[%clk 0:01:41]} 35. Kf3 {[%clk 0:00:01]}  Ke6 {[%clk 0:01:38]} 36. Ke3 {[%clk 0:00:02]}  Kd6 {[%clk 0:01:38]} 37. Kd4 {[%clk 0:00:00]}  h5 {[%clk 0:01:35]} 0-1


[Site "https://www.chess.com"]

[Event "Titled Tuesday Blitz July 18 Early 2023"]
[White "Castillo Pena, Patricia Evarista"]
[Black "BeautiFullMindChess"]
[WhiteFideId "6412106"]
[WhiteElo "1833"]
[BlackElo "2181"]
[Result "0-1"]
[Round "5"]
[TimeControl "180+2"]
[Date "2023.07.18"]
[WhiteClock "0:00:00"]
[BlackClock "0:01:41"]
[Board "204"]

1. d4 {[%clk 0:02:59]}  Nf6 {[%clk 0:02:59]} 2. Nf3 {[%clk 0:02:57]}  e6 {[%clk 0:02:57]} 3. e3 {[%clk 0:02:57]}  c5 {[%clk 0:02:56]} 4. Bd3 {[%clk 0:02:57]}  b6 {[%clk 0:02:56]} 5. O-O {[%clk 0:02:56]}  Be7 {[%clk 0:02:54]} 6. b3 {[%clk 0:02:56]}  cxd4 {[%clk 0:02:53]} 7. exd4 {[%clk 0:02:56]}  O-O {[%clk 0:02:50]} 8. Bb2 {[%clk 0:02:56]}  Ba6 {[%clk 0:02:50]} 9. c4 {[%clk 0:02:55]}  d5 {[%clk 0:02:50]} 10. Qe2 {[%clk 0:02:47]}  dxc4 {[%clk 0:02:49]} 11. bxc4 {[%clk 0:02:47]}  Nc6 {[%clk 0:02:48]} 12. Nbd2 {[%clk 0:02:38]}  Re8 {[%clk 0:02:44]} 13. Rfd1 {[%clk 0:02:28]}  Rc8 {[%clk 0:02:43]} 14. Rac1 {[%clk 0:02:27]}  Qc7 {[%clk 0:02:40]} 15. Ne4 {[%clk 0:02:15]}  Qf4 {[%clk 0:02:26]} 16. g3 {[%clk 0:01:56]}  Qg4 {[%clk 0:02:18]} 17. d5 {[%clk 0:01:38]}  exd5 {[%clk 0:02:03]} 18. Bxf6 {[%clk 0:01:12]}  dxe4 {[%clk 0:01:54]} 19. Bxe4 {[%clk 0:00:55]}  Bxf6 {[%clk 0:01:50]} 20. Qc2 {[%clk 0:00:00]}  Qxe4 {[%clk 0:01:41]} 0-1


[Site "https://www.chess.com"]

[Event "Titled Tuesday Blitz July 18 Early 2023"]
[White "Sankalan Shah"]
[Black "Nan M K Khine Hlyan"]
[WhiteFideId "25600362"]
[BlackFideId "13002899"]
[WhiteElo "2175"]
[BlackElo "1751"]
[Result "1-0"]
[Round "5"]
[TimeControl "180+2"]
[Date "2023.07.18"]
[WhiteClock "0:00:54"]
[BlackClock "0:01:05"]
[Board "205"]

1. d4 {[%clk 0:02:53]}  d5 {[%clk 0:02:47]} 2. c4 {[%clk 0:02:53]}  Nf6 {[%clk 0:02:45]} 3. cxd5 {[%clk 0:02:51]}  Nxd5 {[%clk 0:02:42]} 4. e4 {[%clk 0:02:52]}  Nb6 {[%clk 0:02:41]} 5. Nc3 {[%clk 0:02:51]}  g6 {[%clk 0:02:40]} 6. Be3 {[%clk 0:02:51]}  Bg7 {[%clk 0:02:41]} 7. Be2 {[%clk 0:02:47]}  O-O {[%clk 0:02:40]} 8. Nf3 {[%clk 0:02:47]}  Bg4 {[%clk 0:02:35]} 9. Rc1 {[%clk 0:02:46]}  e6 {[%clk 0:02:33]} 10. O-O {[%clk 0:02:46]}  Bxf3 {[%clk 0:02:31]} 11. Bxf3 {[%clk 0:02:46]}  Nc4 {[%clk 0:02:30]} 12. Qe2 {[%clk 0:02:34]}  Nxe3 {[%clk 0:02:29]} 13. fxe3 {[%clk 0:02:35]}  Nc6 {[%clk 0:02:27]} 14. e5 {[%clk 0:02:36]}  Qh4 {[%clk 0:02:22]} 15. Bxc6 {[%clk 0:02:15]}  bxc6 {[%clk 0:02:21]} 16. Na4 {[%clk 0:02:16]}  Bh6 {[%clk 0:02:16]} 17. Qf3 {[%clk 0:02:07]}  Qg5 {[%clk 0:02:12]} 18. Rc3 {[%clk 0:02:03]}  Rab8 {[%clk 0:02:08]} 19. b3 {[%clk 0:01:58]}  Bg7 {[%clk 0:01:54]} 20. Qxc6 {[%clk 0:01:50]}  h5 {[%clk 0:01:45]} 21. Qe4 {[%clk 0:01:31]}  Rfd8 {[%clk 0:01:37]} 22. Rxc7 {[%clk 0:01:21]}  Rdc8 {[%clk 0:01:34]} 23. Rcxf7 {[%clk 0:01:17]}  Kh8 {[%clk 0:01:32]} 24. Nc5 {[%clk 0:01:16]}  Rb4 {[%clk 0:01:28]} 25. Nxe6 {[%clk 0:01:07]}  Bxe5 {[%clk 0:01:17]} 26. Qxe5+ {[%clk 0:01:00]}  Qxe5 {[%clk 0:01:15]} 27. dxe5 {[%clk 0:01:00]}  Re4 {[%clk 0:01:10]} 28. Rf8+ {[%clk 0:00:52]}  Rxf8 {[%clk 0:01:09]} 29. Rxf8+ {[%clk 0:00:53]}  Kh7 {[%clk 0:01:09]} 30. Ng5+ {[%clk 0:00:54]}  Kg7 {[%clk 0:01:08]} 31. Rf7+ {[%clk 0:00:55]}  Kh6 {[%clk 0:01:05]} 32. Nxe4 {[%clk 0:00:54]} 1-0


[Site "https://www.chess.com"]

[Event "Titled Tuesday Blitz July 18 Early 2023"]
[White "Jones, Gawain C B"]
[Black "Sarana, Alexey"]
[WhiteFideId "409561"]
[BlackFideId "24133795"]
[WhiteElo "2944"]
[BlackElo "3036"]
[Result "0-1"]
[Round "6"]
[TimeControl "180+2"]
[Date "2023.07.18"]
[WhiteClock "0:00:02"]
[BlackClock "0:00:09"]
[Board "3"]

1. Nf3 {[%clk 0:03:00]}  d5 {[%clk 0:03:00]} 2. c4 {[%clk 0:03:00]}  e6 {[%clk 0:02:58]} 3. g3 {[%clk 0:02:59]}  Nf6 {[%clk 0:02:58]} 4. Bg2 {[%clk 0:03:00]}  Be7 {[%clk 0:02:59]} 5. O-O {[%clk 0:03:00]}  O-O {[%clk 0:03:00]} 6. b3 {[%clk 0:03:01]}  c5 {[%clk 0:02:57]} 7. cxd5 {[%clk 0:03:00]}  Nxd5 {[%clk 0:02:56]} 8. Bb2 {[%clk 0:03:00]}  b6 {[%clk 0:02:57]} 9. d4 {[%clk 0:03:00]}  cxd4 {[%clk 0:02:57]} 10. Nxd4 {[%clk 0:02:55]}  Bb7 {[%clk 0:02:58]} 11. e4 {[%clk 0:02:44]}  Nc7 {[%clk 0:02:51]} 12. Qc2 {[%clk 0:02:40]}  Nd7 {[%clk 0:02:48]} 13. Rd1 {[%clk 0:02:34]}  Rc8 {[%clk 0:02:32]} 14. Nc6 {[%clk 0:02:24]}  Bxc6 {[%clk 0:02:18]} 15. Qxc6 {[%clk 0:02:25]}  Nb8 {[%clk 0:01:42]} 16. Qc1 {[%clk 0:02:11]}  Nb5 {[%clk 0:01:25]} 17. Nc3 {[%clk 0:01:23]}  Nxc3 {[%clk 0:01:23]} 18. Rxd8 {[%clk 0:01:12]}  Ne2+ {[%clk 0:01:22]} 19. Kf1 {[%clk 0:01:12]}  Rxc1+ {[%clk 0:01:22]} 20. Rxc1 {[%clk 0:01:09]}  Nxg3+ {[%clk 0:01:02]} 21. hxg3 {[%clk 0:01:08]}  Rxd8 {[%clk 0:00:56]} 22. Rc7 {[%clk 0:00:58]}  Bc5 {[%clk 0:00:55]} 23. Bc3 {[%clk 0:00:24]}  a5 {[%clk 0:00:52]} 24. Bxa5 {[%clk 0:00:18]}  Bd6 {[%clk 0:00:34]} 25. Bxb6 {[%clk 0:00:15]}  Bxc7 {[%clk 0:00:35]} 26. Bxc7 {[%clk 0:00:16]}  Rc8 {[%clk 0:00:36]} 27. Bf4 {[%clk 0:00:05]}  Na6 {[%clk 0:00:32]} 28. Bd6 {[%clk 0:00:02]}  Rc1+ {[%clk 0:00:30]} 29. Ke2 {[%clk 0:00:02]}  Rc2+ {[%clk 0:00:30]} 30. Ke3 {[%clk 0:00:02]}  Rxa2 {[%clk 0:00:31]} 31. Bf1 {[%clk 0:00:02]}  f6 {[%clk 0:00:24]} 32. Bc4 {[%clk 0:00:03]}  Kf7 {[%clk 0:00:23]} 33. f4 {[%clk 0:00:03]}  Ke8 {[%clk 0:00:15]} 34. Bxe6 {[%clk 0:00:03]}  Rg2 {[%clk 0:00:13]} 35. f5 {[%clk 0:00:03]}  Kd8 {[%clk 0:00:07]} 36. b4 {[%clk 0:00:02]}  Nc7 {[%clk 0:00:07]} 37. Bc4 {[%clk 0:00:02]}  Kd7 {[%clk 0:00:08]} 38. Bf4 {[%clk 0:00:01]}  Kc6 {[%clk 0:00:08]} 39. e5 {[%clk 0:00:01]}  Rb2 {[%clk 0:00:05]} 40. e6 {[%clk 0:00:01]}  Rxb4 {[%clk 0:00:04]} 41. Kd3 {[%clk 0:00:02]}  Rb1 {[%clk 0:00:03]} 42. Kc2 {[%clk 0:00:01]}  Re1 {[%clk 0:00:04]} 43. Kc3 {[%clk 0:00:02]}  Nd5+ {[%clk 0:00:03]} 44. Kd2 {[%clk 0:00:02]}  Re4 {[%clk 0:00:02]} 45. Kd3 {[%clk 0:00:03]}  Re1 {[%clk 0:00:01]} 46. Kd2 {[%clk 0:00:04]}  Ra1 {[%clk 0:00:01]} 47. Kd3 {[%clk 0:00:02]}  Nxf4+ {[%clk 0:00:01]} 48. gxf4 {[%clk 0:00:03]}  Kd6 {[%clk 0:00:02]} 49. Bb5 {[%clk 0:00:03]}  Re1 {[%clk 0:00:02]} 50. Be8 {[%clk 0:00:02]}  Ke7 {[%clk 0:00:01]} 51. Bh5 {[%clk 0:00:01]}  Rh1 {[%clk 0:00:02]} 52. Bf3 {[%clk 0:00:01]}  Re1 {[%clk 0:00:02]} 53. Kd2 {[%clk 0:00:02]}  Ra1 {[%clk 0:00:03]} 54. Ke3 {[%clk 0:00:02]}  Ra3+ {[%clk 0:00:04]} 55. Kf2 {[%clk 0:00:03]}  Ra5 {[%clk 0:00:04]} 56. Be4 {[%clk 0:00:03]}  Ra4 {[%clk 0:00:04]} 57. Kf3 {[%clk 0:00:03]}  Kd6 {[%clk 0:00:05]} 58. Bc2 {[%clk 0:00:03]}  Rb4 {[%clk 0:00:06]} 59. Kg4 {[%clk 0:00:03]}  Rc4 {[%clk 0:00:06]} 60. Bb3 {[%clk 0:00:03]}  Rc3 {[%clk 0:00:06]} 61. Ba4 {[%clk 0:00:03]}  Re3 {[%clk 0:00:06]} 62. Be8 {[%clk 0:00:03]}  Re1 {[%clk 0:00:07]} 63. Bf7 {[%clk 0:00:03]}  Rg1+ {[%clk 0:00:07]} 64. Kf3 {[%clk 0:00:04]}  g6 {[%clk 0:00:06]} 65. Kf2 {[%clk 0:00:03]}  Rg4 {[%clk 0:00:06]} 66. Kf3 {[%clk 0:00:02]}  gxf5 {[%clk 0:00:06]} 67. Bh5 {[%clk 0:00:03]}  Rh4 {[%clk 0:00:06]} 68. Bf7 {[%clk 0:00:03]}  Rh3+ {[%clk 0:00:07]} 69. Kg2 {[%clk 0:00:04]}  Ra3 {[%clk 0:00:07]} 70. Kf2 {[%clk 0:00:03]}  Rc3 {[%clk 0:00:07]} 71. Kg2 {[%clk 0:00:04]}  Re3 {[%clk 0:00:07]} 72. Bg8 {[%clk 0:00:03]}  h6 {[%clk 0:00:07]} 73. Kf2 {[%clk 0:00:02]}  Rxe6 {[%clk 0:00:07]} 74. Bxe6 {[%clk 0:00:03]}  Kxe6 {[%clk 0:00:08]} 75. Kg3 {[%clk 0:00:03]}  Kd5 {[%clk 0:00:09]} 76. Kh4 {[%clk 0:00:02]}  Ke4 {[%clk 0:00:09]} 0-1


[Site "https://www.chess.com"]

[Event "Titled Tuesday Blitz July 18 Early 2023"]
[White "Preotu, Razvan"]
[Black "Galperin, Platon"]
[WhiteFideId "2613280"]
[BlackFideId "14165414"]
[WhiteElo "2740"]
[BlackElo "2977"]
[Result "0-1"]
[Round "6"]
[TimeControl "180+2"]
[Date "2023.07.18"]
[WhiteClock "0:00:00"]
[BlackClock "0:00:04"]
[Board "12"]

1. e4 {[%clk 0:03:00]}  d5 {[%clk 0:02:58]} 2. exd5 {[%clk 0:03:00]}  Qxd5 {[%clk 0:02:59]} 3. Nc3 {[%clk 0:03:00]}  Qd6 {[%clk 0:03:00]} 4. d4 {[%clk 0:03:00]}  Nf6 {[%clk 0:03:00]} 5. Nf3 {[%clk 0:03:01]}  a6 {[%clk 0:03:01]} 6. g3 {[%clk 0:03:00]}  b5 {[%clk 0:03:00]} 7. Bf4 {[%clk 0:02:59]}  Qb6 {[%clk 0:03:00]} 8. Bg2 {[%clk 0:02:40]}  Bb7 {[%clk 0:02:57]} 9. O-O {[%clk 0:02:40]}  e6 {[%clk 0:02:57]} 10. a4 {[%clk 0:02:30]}  Bb4 {[%clk 0:02:56]} 11. axb5 {[%clk 0:02:22]}  axb5 {[%clk 0:02:56]} 12. Rxa8 {[%clk 0:02:23]}  Bxa8 {[%clk 0:02:56]} 13. Qd3 {[%clk 0:02:06]}  Bxc3 {[%clk 0:02:50]} 14. Qxc3 {[%clk 0:02:07]}  Nd5 {[%clk 0:02:49]} 15. Qa3 {[%clk 0:02:07]}  Nxf4 {[%clk 0:02:42]} 16. Qxa8 {[%clk 0:01:58]}  Nxg2 {[%clk 0:02:42]} 17. Kxg2 {[%clk 0:01:59]}  O-O {[%clk 0:02:43]} 18. Ra1 {[%clk 0:01:54]}  b4 {[%clk 0:02:30]} 19. Qa5 {[%clk 0:01:17]}  Qb7 {[%clk 0:02:26]} 20. Ra4 {[%clk 0:00:55]}  Qe4 {[%clk 0:02:18]} 21. Qc5 {[%clk 0:00:50]}  h5 {[%clk 0:02:01]} 22. Qxh5 {[%clk 0:00:34]}  Qxc2 {[%clk 0:01:59]} 23. Rxb4 {[%clk 0:00:35]}  Nc6 {[%clk 0:01:55]} 24. Rb5 {[%clk 0:00:27]}  Qd3 {[%clk 0:01:55]} 25. Qc5 {[%clk 0:00:26]}  Ne7 {[%clk 0:01:52]} 26. Ra5 {[%clk 0:00:05]}  Nd5 {[%clk 0:01:49]} 27. Ra1 {[%clk 0:00:06]}  Rb8 {[%clk 0:01:46]} 28. Qa3 {[%clk 0:00:02]}  Qe4 {[%clk 0:01:43]} 29. Re1 {[%clk 0:00:03]}  Qg4 {[%clk 0:01:40]} 30. Ne5 {[%clk 0:00:03]}  Qxd4 {[%clk 0:01:37]} 31. Nc6 {[%clk 0:00:02]}  Qxb2 {[%clk 0:01:34]} 32. Qxb2 {[%clk 0:00:01]}  Rxb2 {[%clk 0:01:35]} 33. Rc1 {[%clk 0:00:02]}  g5 {[%clk 0:01:27]} 34. Ne5 {[%clk 0:00:01]}  Kg7 {[%clk 0:01:23]} 35. h3 {[%clk 0:00:02]}  Kf6 {[%clk 0:01:19]} 36. Ng4+ {[%clk 0:00:02]}  Kf5 {[%clk 0:01:19]} 37. Kf3 {[%clk 0:00:02]}  e5 {[%clk 0:01:18]} 38. Ne3+ {[%clk 0:00:03]}  Nxe3 {[%clk 0:01:17]} 39. Kxe3 {[%clk 0:00:04]}  Rb3+ {[%clk 0:01:11]} 40. Ke2 {[%clk 0:00:04]}  Rb7 {[%clk 0:01:10]} 41. Rc6 {[%clk 0:00:04]}  Ke4 {[%clk 0:01:08]} 42. h4 {[%clk 0:00:05]}  gxh4 {[%clk 0:01:07]} 43. gxh4 {[%clk 0:00:06]}  Kf4 {[%clk 0:00:41]} 44. h5 {[%clk 0:00:06]}  f5 {[%clk 0:00:36]} 45. h6 {[%clk 0:00:06]}  Rb1 {[%clk 0:00:08]} 46. Rxc7 {[%clk 0:00:05]}  e4 {[%clk 0:00:05]} 47. h7 {[%clk 0:00:05]}  Rh1 {[%clk 0:00:06]} 48. Rg7 {[%clk 0:00:06]}  Rh2 {[%clk 0:00:06]} 49. Kf1 {[%clk 0:00:06]}  Kf3 {[%clk 0:00:05]} 50. Kg1 {[%clk 0:00:06]}  Rh4 {[%clk 0:00:03]} 51. Rf7 {[%clk 0:00:06]}  f4 {[%clk 0:00:03]} 52. Rg7 {[%clk 0:00:06]}  Rh5 {[%clk 0:00:02]} 53. Rf7 {[%clk 0:00:05]}  Rh4 {[%clk 0:00:02]} 54. Rg7 {[%clk 0:00:05]}  Ke2 {[%clk 0:00:03]} 55. Rf7 {[%clk 0:00:04]}  e3 {[%clk 0:00:03]} 56. fxe3 {[%clk 0:00:05]}  f3 {[%clk 0:00:04]} 57. e4 {[%clk 0:00:04]}  Rxh7 {[%clk 0:00:04]} 58. Rxh7 {[%clk 0:00:02]}  f2+ {[%clk 0:00:04]} 59. Kh2 {[%clk 0:00:02]}  f1=Q {[%clk 0:00:05]} 60. Rg7 {[%clk 0:00:02]}  Qf4+ {[%clk 0:00:04]} 61. Kh3 {[%clk 0:00:00]}  Qh6+ {[%clk 0:00:04]} 0-1


[Site "https://www.chess.com"]